[Event "Schack-SM 2024: Mastarklassen-elit"]
[Site "Fortnox Arena, Hejaregatan 5, Vaxjo, Sweden"]
[Date "2024.07.06"]
[Round "8.3"]
[White "Thorn, Eric"]
[Black "Sorensen, Hampus"]
[Result "0-1"]
[TimeControl "90 minutes for 40 moves + 30 minutes for the rest of the game + 30 seconds per move from move one."]
[WhiteTitle "FM"]
[BlackTitle "IM"]
[WhiteElo "2359"]
[BlackElo "2404"]

1. d4 {[%clk 01:30:54]} {[%emt 00:00:04]} Nf6 {[%clk 01:30:33]} {[%emt
00:00:29]} 2. c4 {[%clk 01:31:07]} {[%emt 00:00:16]} e6 {[%clk 01:30:52]}
{[%emt 00:00:12]} 3. Nf3 {[%clk 01:30:49]} {[%emt 00:00:47]} d5 {[%clk
01:31:13]} {[%emt 00:00:10]} 4. g3 {[%clk 01:30:37]} {[%emt 00:00:42]} Bb4+
{[%clk 01:31:31]} {[%emt 00:00:12]} 5. Bd2 {[%clk 01:31:01]} {[%emt 00:00:06]}
Be7 {[%clk 01:31:46]} {[%emt 00:00:14]} 6. Bg2 {[%clk 01:31:12]} {[%emt
00:00:20]} c6 {[%clk 01:30:51]} {[%emt 00:01:25]} 7. Qc2 {[%clk 01:30:21]}
{[%emt 00:01:19]} Nbd7 {[%clk 01:30:12]} {[%emt 00:01:11]} 8. O-O {[%clk
01:30:28]} {[%emt 00:00:23]} O-O {[%clk 01:26:17]} {[%emt 00:04:24]} 9. Rc1
{[%clk 01:30:00]} {[%emt 00:00:57]} a5 {[%clk 01:22:39]} {[%emt 00:04:09]} 10.
a3 {[%clk 01:29:33]} {[%emt 00:00:57]} Ne4 {[%clk 01:20:21]} {[%emt 00:02:47]}
11. Be1 {[%clk 01:29:31]} {[%emt 00:00:32]} Nb6 {[%clk 01:05:55]} {[%emt
00:14:57]} 12. Nbd2 {[%clk 01:22:14]} {[%emt 00:07:47]} Nxd2 {[%clk 01:05:00]}
{[%emt 00:01:25]} 13. Nxd2 {[%clk 01:22:37]} {[%emt 00:00:06]} a4 {[%clk
01:05:19]} {[%emt 00:00:12]} 14. c5 {[%clk 01:17:03]} {[%emt 00:06:03]} Nd7
{[%clk 01:05:35]} {[%emt 00:00:14]} 15. e4 {[%clk 01:17:28]} {[%emt 00:00:05]}
b6 {[%clk 00:58:13]} {[%emt 00:07:51]} 16. cxb6 {[%clk 01:15:51]} {[%emt
00:02:08]} Bb7 {[%clk 00:58:37]} {[%emt 00:00:06]} 17. exd5 {[%clk 01:11:45]}
{[%emt 00:04:36]} exd5 {[%clk 00:46:31]} {[%emt 00:12:36]} 18. Nf3 {[%clk
01:07:06]} {[%emt 00:05:08]} Qxb6 {[%clk 00:46:04]} {[%emt 00:00:57]} 19. Bc3
{[%clk 01:05:45]} {[%emt 00:01:51]} Bd6 {[%clk 00:42:12]} {[%emt 00:04:22]} 20.
Re1 {[%clk 00:58:44]} {[%emt 00:07:31]} Nf6 {[%clk 00:39:41]} {[%emt 00:03:01]}
21. Nh4 {[%clk 00:55:03]} {[%emt 00:04:11]} Bc8 {[%clk 00:37:02]} {[%emt
00:03:10]} 22. Rac1 {[%clk 00:51:22]} {[%emt 00:04:10]} g6 {[%clk 00:32:45]}
{[%emt 00:04:48]} 23. Bd2 {[%clk 00:45:28]} {[%emt 00:06:23]} Bd7 {[%emt
00:02:12]} 24. Bg5 {[%clk 00:43:28]} {[%emt 00:02:26]} Kg7 {[%clk 00:28:01]}
{[%emt 00:03:36]} 25. Qd2 {[%clk 00:39:41]} {[%emt 00:04:16]} Rfe8 {[%clk
00:21:51]} {[%emt 00:06:41]} 26. Bh6+ {[%clk 00:38:34]} {[%emt 00:01:38]} Kh8
{[%clk 00:21:57]} {[%emt 00:00:23]} 27. Bf4 {[%clk 00:38:49]} {[%emt 00:00:14]}
Bxf4 {[%clk 00:20:31]} {[%emt 00:01:57]} 28. Qxf4 {[%clk 00:36:51]} {[%emt
00:02:27]} Kg7 {[%clk 00:20:50]} {[%emt 00:00:11]} 29. Qd2 {[%clk 00:30:40]}
{[%emt 00:06:40]} Rab8 {[%clk 00:17:56]} {[%emt 00:03:24]} 30. Rxe8 {[%clk
00:29:40]} {[%emt 00:01:31]} Nxe8 {[%clk 00:16:30]} {[%emt 00:01:57]} 31. Rc2
{[%clk 00:23:26]} {[%emt 00:06:44]} Nf6 {[%clk 00:12:06]} {[%emt 00:04:54]} 32.
h3 {[%clk 00:16:41]} {[%emt 00:07:15]} Re8 {[%clk 00:08:39]} {[%emt 00:03:57]}
33. Nf3 {[%clk 00:14:14]} {[%emt 00:02:57]} Bf5 {[%clk 00:07:38]} {[%emt
00:01:31]} 34. Rc1 {[%clk 00:14:36]} {[%emt 00:00:09]} Ne4 {[%clk 00:07:01]}
{[%emt 00:01:08]} 35. Qe2 {[%clk 00:09:05]} {[%emt 00:06:00]} Nd6 {[%clk
00:04:01]} {[%emt 00:03:30]} 36. Qd1 {[%clk 00:06:00]} {[%emt 00:03:35]} Nc4
{[%clk 00:04:17]} {[%emt 00:00:14]} 37. Qxa4 {[%clk 00:04:51]} {[%emt
00:01:39]} Qxb2 {[%clk 00:04:40]} {[%emt 00:00:06]} 38. Rf1 {[%clk 00:03:46]}
{[%emt 00:01:35]} Bd3 {[%clk 00:04:28]} {[%emt 00:00:41]} 39. Qxc6 {[%clk
00:02:32]} {[%emt 00:01:45]} Re6 {[%clk 00:04:50]} {[%emt 00:00:08]} 40. Qxd5
{[%clk 00:02:57]} {[%emt 00:00:05]} Bxf1 {[%clk 00:05:07]} {[%emt 00:00:14]} 41.
Bxf1 {[%clk 00:01:33]} {[%emt 00:01:53]} Nd2 {[%clk 00:22:59]} {[%emt
00:12:38]} 42. Nxd2 {[%clk 00:17:28]} {[%emt 00:14:35]} Qxd2 {[%clk 00:23:10]}
{[%emt 00:00:18]} 43. Qc5 {[%clk 00:09:10]} {[%emt 00:08:49]} Re4 {[%clk
00:13:43]} {[%emt 00:09:57]} 44. a4 {[%clk 00:07:46]} {[%emt 00:01:56]} Qxd4
{[%clk 00:12:08]} {[%emt 00:02:05]} 45. Qxd4+ {[%clk 00:08:04]} {[%emt
00:00:10]} Rxd4 {[%clk 00:12:35]} {[%emt 00:00:03]} 46. a5 {[%clk 00:08:28]}
{[%emt 00:00:06]} Ra4 {[%clk 00:12:54]} {[%emt 00:00:11]} 47. a6 {[%clk
00:08:54]} {[%emt 00:00:04]} g5 {[%clk 00:10:17]} {[%emt 00:03:07]} 48. Bb5
{[%clk 00:08:43]} {[%emt 00:00:41]} Ra1+ {[%clk 00:06:12]} {[%emt 00:04:36]} 49.
Kg2 {[%clk 00:09:08]} {[%emt 00:00:04]} f5 {[%clk 00:06:33]} {[%emt 00:00:09]}
50. Kf3 {[%clk 00:08:19]} {[%emt 00:01:19]} Ra3+ {[%clk 00:04:16]} {[%emt
00:02:48]} 51. Ke2 {[%clk 00:08:39]} {[%emt 00:00:10]} Kf6 {[%clk 00:04:28]}
{[%emt 00:00:20]} 52. Kd2 {[%clk 00:08:09]} {[%emt 00:00:58]} Ke5 {[%clk
00:04:52]} {[%emt 00:00:06]} 53. Kc2 {[%clk 00:07:39]} {[%emt 00:00:59]} Kd4
{[%clk 00:04:15]} {[%emt 00:01:07]} 54. Kb2 {[%clk 00:07:56]} {[%emt 00:00:14]}
Ra5 {[%clk 00:04:41]} {[%emt 00:00:04]} 55. Be2 {[%clk 00:08:10]} {[%emt
00:00:15]} h6 {[%clk 00:03:40]} {[%emt 00:01:31]} 56. Kb3 {[%clk 00:07:03]}
{[%emt 00:01:39]} Kc5 {[%clk 00:04:08]} 57. Bd3 {[%clk 00:04:55]} {[%emt
00:02:38]} f4 {[%clk 00:03:07]} {[%emt 00:01:31]} 58. gxf4 {[%clk 00:04:55]}
{[%emt 00:00:32]} gxf4 {[%clk 00:03:35]} {[%emt 00:00:01]} 59. f3 {[%clk
00:03:16]} {[%emt 00:02:08]} Ra1 {[%clk 00:03:03]} {[%emt 00:01:01]} 60. Kb2
{[%clk 00:02:36]} {[%emt 00:01:12]} Ra4 {[%clk 00:03:31]} {[%emt 00:00:01]} 61.
Kb3 {[%clk 00:02:57]} {[%emt 00:00:08]} Ra5 {[%clk 00:03:55]} {[%emt 00:00:06]}
62. Be2 {[%clk 00:02:07]} {[%emt 00:01:20]} Kb6 {[%clk 00:02:36]} {[%emt
00:01:50]} 63. Bd3 {[%clk 00:01:20]} {[%emt 00:01:16]} Rh5 {[%clk 00:02:09]}
{[%emt 00:00:58]} 64. Kc3 {[%clk 00:00:32]} {[%emt 00:01:17]} Rxh3 {[%clk
00:02:22]} {[%emt 00:00:17]} 65. Be4 {[%clk 00:00:32]} {[%emt 00:00:31]} Kxa6
{[%clk 00:01:01]} {[%emt 00:01:49]} 66. Kd4 {[%clk 00:00:53]} {[%emt 00:00:09]}
Kb6 {[%clk 00:01:12]} {[%emt 00:00:20]} 67. Ke5 {[%clk 00:01:07]} {[%emt
00:00:15]} Rh4 {[%clk 00:01:33]} {[%emt 00:00:09]} 68. Bf5 {[%clk 00:00:33]}
{[%emt 00:01:04]} Kc5 {[%clk 00:01:44]} {[%emt 00:00:18]} 69. Be6 {[%clk
00:00:43]} {[%emt 00:00:20]} Kc6 {[%clk 00:01:07]} {[%emt 00:01:08]} 70. Bf5
{[%clk 00:00:32]} {[%emt 00:00:41]} Kc7 {[%clk 00:01:30]} {[%emt 00:00:06]} 71.
Ke4 {[%clk 00:00:36]} {[%emt 00:00:26]} Kd8 {[%clk 00:00:46]} {[%emt 00:01:15]}
72. Bg4 {[%clk 00:00:33]} {[%emt 00:00:32]} h5 {[%clk 00:01:10]} {[%emt
00:00:06]} 73. Bf5 {[%clk 00:00:35]} {[%emt 00:00:29]} Ke7 {[%clk 00:01:22]}
{[%emt 00:00:16]} 74. Ke5 {[%clk 00:01:00]} {[%emt 00:00:07]} Rh1 {[%clk
00:00:52]} {[%emt 00:00:59]} 75. Kxf4 {[%clk 00:01:03]} {[%emt 00:00:28]} Kf6
{[%clk 00:00:42]} {[%emt 00:00:40]} 76. Bc8 {[%clk 00:00:53]} {[%emt 00:00:39]}
Rg1 {[%clk 00:00:46]} {[%emt 00:00:26]} 77. Bd7 {[%clk 00:00:40]} {[%emt
00:00:43]} Rd1 {[%clk 00:00:46]} {[%emt 00:00:29]} 78. Be8 {[%clk 00:00:35]}
{[%emt 00:00:36]} Rd4+ {[%clk 00:00:47]} {[%emt 00:00:28]} 79. Kg3 {[%clk
00:00:54]} {[%emt 00:00:10]} Kg5 {[%clk 00:00:39]} {[%emt 00:00:37]} 80. f4+
{[%clk 00:01:00]} {[%emt 00:00:26]} Kh6 {[%clk 00:01:08]} 81. Bf7 {[%clk
00:00:49]} {[%emt 00:00:41]} Rd7 {[%clk 00:01:29]} {[%emt 00:00:09]} 82. Be6
{[%emt 00:00:50]} Rd3+ {[%clk 00:01:52]} {[%emt 00:00:01]} 83. Kf2 {[%clk
00:00:33]} {[%emt 00:00:32]} Kg6 {[%clk 00:01:22]} {[%emt 00:01:01]} 84. Bc8
{[%clk 00:00:34]} {[%emt 00:00:29]} Kf6 {[%clk 00:01:07]} {[%emt 00:00:45]} 85.
Kg2 {[%clk 00:00:33]} {[%emt 00:00:30]} h4 {[%clk 00:00:43]} {[%emt 00:00:54]}
86. Kf2 {[%clk 00:00:33]} {[%emt 00:00:29]} Rg3 {[%clk 00:00:53]} {[%emt
00:00:22]} 87. Bd7 {[%clk 00:00:55]} {[%emt 00:00:07]} Ke7 {[%clk 00:01:06]}
{[%emt 00:00:17]} 88. Bc8 {[%clk 00:00:33]} {[%emt 00:00:53]} Kd6 {[%clk
00:01:32]} {[%emt 00:00:03]} 89. Bb7 {[%clk 00:00:32]} {[%emt 00:00:31]} Ke6
{[%clk 00:01:26]} {[%emt 00:00:36]} 90. Bc8+ {[%clk 00:00:54]} {[%emt
00:00:08]} Kd5 {[%clk 00:01:43]} {[%emt 00:00:13]} 91. Bb7+ {[%clk 00:01:08]}
{[%emt 00:00:17]} Kd4 {[%clk 00:02:12]} {[%emt 00:00:01]} 92. Bc6 {[%clk
00:01:23]} {[%emt 00:00:15]} Rg4 {[%clk 00:02:00]} {[%emt 00:00:41]} 93. Kf3
{[%clk 00:01:18]} {[%emt 00:00:35]} Rg6 {[%clk 00:02:23]} {[%emt 00:00:07]} 94.
Bb7 {[%clk 00:00:36]} {[%emt 00:01:11]} Rg7 {[%clk 00:00:53]} {[%emt 00:02:01]}
95. Bc6 {[%clk 00:01:01]} {[%emt 00:00:05]} Kc5 {[%clk 00:00:55]} {[%emt
00:00:28]} 96. Be4 {[%clk 00:01:00]} {[%emt 00:00:31]} h3 {[%clk 00:00:55]}
{[%emt 00:00:29]} 97. f5 {[%clk 00:00:32]} {[%emt 00:00:59]} h2 {[%clk
00:00:53]} {[%emt 00:00:32]} 98. Kf4 {[%clk 00:00:48]} {[%emt 00:00:14]} Rg1
{[%clk 00:01:05]} {[%emt 00:00:18]} 99. f6 {[%clk 00:00:41]} {[%emt 00:00:36]}
Kd6 {[%clk 00:01:28]} {[%emt 00:00:07]} 100. f7 {[%clk 00:00:46]} {[%emt
00:00:24]} Ke7 {[%clk 00:01:54]} {[%emt 00:00:04]} 0-1

[Event "Schack-SM 2024: Mastarklassen-elit"]
[Site "Fortnox Arena, Hejaregatan 5, Vaxjo, Sweden"]
[Date "2024.07.06"]
[Round "8.4"]
[White "Cederstam, Carl"]
[Black "Wiedenkeller, Michael"]
[Result "1-0"]
[TimeControl "90 minutes for 40 moves + 30 minutes for the rest of the game + 30 seconds per move from move one."]
[WhiteTitle "FM"]
[BlackTitle "IM"]
[WhiteElo "2278"]
[BlackElo "2417"]

1. d4 {[%clk 01:30:57]} {[%emt 00:00:02]} d5 {[%clk 01:30:30]} {[%emt
00:00:31]} 2. c4 {[%clk 01:31:09]} {[%emt 00:00:19]} dxc4 {[%clk 01:30:50]}
{[%emt 00:00:09]} 3. e4 {[%clk 01:30:23]} {[%emt 00:01:15]} e5 {[%clk
01:30:48]} {[%emt 00:00:33]} 4. Nf3 {[%clk 01:28:57]} {[%emt 00:01:56]} Bb4+
{[%clk 01:31:12]} {[%emt 00:00:05]} 5. Nc3 {[%clk 01:29:14]} {[%emt 00:00:14]}
exd4 {[%clk 01:31:27]} {[%emt 00:00:15]} 6. Nxd4 {[%clk 01:18:12]} {[%emt
00:11:31]} Nd7 {[%clk 01:31:22]} {[%emt 00:00:36]} 7. Bxc4 {[%clk 01:17:20]}
{[%emt 00:01:22]} Ngf6 {[%clk 01:31:11]} {[%emt 00:00:41]} 8. O-O {[%clk
01:15:25]} {[%emt 00:02:26]} O-O {[%clk 01:31:16]} {[%emt 00:00:25]} 9. Nde2
{[%clk 01:11:31]} {[%emt 00:04:24]} Ne5 {[%clk 01:19:56]} {[%emt 00:11:50]} 10.
Bb3 {[%clk 01:11:23]} {[%emt 00:00:37]} Qe7 {[%clk 01:05:01]} {[%emt 00:15:24]}
11. a3 {[%clk 01:01:46]} {[%emt 00:10:08]} Bc5 {[%clk 01:01:55]} {[%emt
00:03:37]} 12. Bg5 {[%clk 01:00:28]} {[%emt 00:01:46]} Be6 {[%clk 00:47:08]}
{[%emt 00:15:18]} 13. Na4 {[%clk 00:58:05]} {[%emt 00:02:54]} Rfd8 {[%clk
00:40:02]} {[%emt 00:07:36]} 14. Qc2 {[%clk 00:57:56]} {[%emt 00:00:39]} Bxb3
{[%clk 00:39:40]} {[%emt 00:00:51]} 15. Qxb3 {[%clk 00:57:29]} {[%emt
00:00:58]} Bb6 {[%clk 00:30:53]} {[%emt 00:09:16]} 16. Nf4 {[%clk 00:47:38]}
{[%emt 00:10:20]} Ned7 {[%clk 00:30:24]} {[%emt 00:00:59]} 17. Nxb6 {[%clk
00:40:13]} {[%emt 00:07:54]} axb6 {[%clk 00:29:18]} {[%emt 00:01:37]} 18. Nd5
{[%clk 00:38:06]} {[%emt 00:02:37]} Qe5 {[%clk 00:18:58]} {[%emt 00:10:50]} 19.
Bf4 {[%clk 00:36:25]} {[%emt 00:02:10]} Qxe4 {[%clk 00:19:27]} {[%emt
00:00:03]} 20. Nxf6+ {[%clk 00:36:21]} {[%emt 00:00:33]} Nxf6 {[%clk 00:19:55]}
{[%emt 00:00:03]} 21. Bxc7 {[%clk 00:36:40]} {[%emt 00:00:10]} Rd3 {[%clk
00:14:51]} {[%emt 00:05:34]} 22. Qxb6 {[%clk 00:33:52]} {[%emt 00:03:19]} Qd5
{[%clk 00:14:14]} {[%emt 00:01:06]} 23. Bf4 {[%clk 00:27:06]} {[%emt 00:07:16]}
Rb3 {[%clk 00:13:24]} {[%emt 00:01:20]} 24. Qc7 {[%clk 00:26:02]} {[%emt
00:01:35]} Rxb2 {[%clk 00:13:22]} {[%emt 00:00:33]} 25. Rad1 {[%clk 00:12:08]}
{[%emt 00:14:23]} Qc6 {[%clk 00:11:17]} {[%emt 00:02:36]} 26. Rd8+ {[%clk
00:12:32]} {[%emt 00:00:06]} Rxd8 {[%clk 00:11:39]} {[%emt 00:00:07]} 27. Qxd8+
{[%clk 00:13:00]} {[%emt 00:00:02]} Qe8 {[%clk 00:11:56]} {[%emt 00:00:13]} 28.
Rd1 {[%clk 00:13:09]} {[%emt 00:00:22]} Re2 {[%clk 00:04:16]} {[%emt 00:08:11]}
29. Qxe8+ {[%clk 00:10:57]} {[%emt 00:02:43]} Rxe8 {[%clk 00:04:24]} {[%emt
00:00:21]} 30. f3 {[%clk 00:10:45]} {[%emt 00:00:41]} h6 {[%clk 00:04:26]}
{[%emt 00:00:28]} 31. Kf2 {[%clk 00:10:53]} {[%emt 00:00:21]} Ra8 {[%clk
00:04:32]} {[%emt 00:00:26]} 32. Rd3 {[%clk 00:10:57]} {[%emt 00:00:25]} Kf8
{[%clk 00:03:03]} {[%emt 00:01:59]} 33. Bd6+ {[%clk 00:10:51]} {[%emt
00:00:36]} Ke8 {[%clk 00:02:55]} {[%emt 00:00:38]} 34. Bb4 {[%clk 00:11:14]}
{[%emt 00:00:07]} Ra6 {[%clk 00:01:57]} {[%emt 00:01:30]} 35. g4 {[%clk
00:08:37]} {[%emt 00:03:06]} Re6 {[%clk 00:01:36]} {[%emt 00:00:50]} 36. h4
{[%clk 00:07:37]} {[%emt 00:01:30]} h5 {[%clk 00:01:09]} {[%emt 00:00:58]} 37.
g5 {[%clk 00:06:52]} {[%emt 00:01:13]} Nd7 {[%clk 00:01:29]} {[%emt 00:00:11]}
38. f4 {[%clk 00:03:19]} {[%emt 00:04:03]} f5 {[%clk 00:01:41]} {[%emt
00:00:19]} 39. Rd5 {[%clk 00:02:42]} {[%emt 00:01:06]} g6 {[%clk 00:01:52]}
{[%emt 00:00:20]} 40. Rb5 {[%clk 00:00:35]} {[%emt 00:02:36]} Rb6 {[%clk
00:00:54]} {[%emt 00:01:30]} 41. Rd5 {[%clk 00:24:59]} {[%emt 00:06:05]} Re6
{[%clk 00:29:24]} {[%emt 00:02:01]} 42. Kf3 {[%clk 00:22:12]} {[%emt 00:03:16]}
Kd8 {[%clk 00:21:59]} {[%emt 00:07:55]} 43. Bd6 {[%clk 00:19:13]} {[%emt
00:03:29]} Nb6 {[%clk 00:20:43]} {[%emt 00:01:45]} 44. Rd4 {[%clk 00:19:23]}
{[%emt 00:00:20]} Nd7 {[%clk 00:17:44]} {[%emt 00:03:29]} 45. Kf2 {[%clk
00:18:07]} {[%emt 00:01:47]} Ke8 {[%clk 00:17:54]} {[%emt 00:00:21]} 46. a4
{[%clk 00:15:45]} {[%emt 00:02:51]} b6 {[%clk 00:15:32]} {[%emt 00:02:52]} 47.
Rd3 {[%clk 00:02:48]} {[%emt 00:13:27]} Kd8 {[%clk 00:10:01]} {[%emt 00:06:01]}
48. Be5 {[%clk 00:01:40]} {[%emt 00:01:39]} Ke7 {[%clk 00:08:43]} {[%emt
00:01:48]} 49. Bd4 {[%clk 00:01:53]} {[%emt 00:00:17]} Re4 {[%clk 00:08:28]}
{[%emt 00:00:46]} 50. Re3 {[%clk 00:00:47]} {[%emt 00:01:35]} Ke6 {[%clk
00:07:04]} {[%emt 00:01:54]} 51. Rxe4+ {[%clk 00:01:08]} {[%emt 00:00:10]} fxe4
{[%clk 00:07:33]} 52. Ke2 {[%clk 00:01:12]} {[%emt 00:00:26]} Kd6 {[%clk
00:01:35]} {[%emt 00:06:28]} 53. Kd2 {[%clk 00:01:39]} {[%emt 00:00:04]} Ke6
{[%clk 00:01:52]} {[%emt 00:00:13]} 54. Ke2 {[%clk 00:01:12]} {[%emt 00:00:57]}
Kd6 {[%clk 00:02:20]} {[%emt 00:00:03]} 55. Ke3 {[%clk 00:00:59]} {[%emt
00:00:43]} Kd5 {[%clk 00:02:38]} {[%emt 00:00:11]} 56. Bc3 {[%clk 00:00:38]}
{[%emt 00:00:50]} Nc5 {[%clk 00:02:42]} {[%emt 00:00:27]} 57. f5 {[%clk
00:00:41]} {[%emt 00:00:27]} gxf5 {[%clk 00:03:07]} {[%emt 00:00:05]} 58. g6
{[%clk 00:00:37]} {[%emt 00:00:34]} Ke6 {[%clk 00:03:03]} {[%emt 00:00:33]} 59.
Kf4 {[%clk 00:01:02]} {[%emt 00:00:06]} e3 {[%clk 00:00:51]} {[%emt 00:02:42]}
60. Kg5 {[%clk 00:00:58]} {[%emt 00:00:34]} Ke7 {[%clk 00:00:48]} {[%emt
00:00:33]} 61. Bb4 {[%clk 00:00:39]} {[%emt 00:00:49]} Kf8 {[%clk 00:00:32]}
{[%emt 00:00:47]} 62. Kxf5 {[%clk 00:00:38]} {[%emt 00:00:32]} Kg7 {[%clk
00:00:47]} {[%emt 00:00:14]} 63. a5 {[%clk 00:00:41]} {[%emt 00:00:28]} bxa5
{[%clk 00:00:56]} {[%emt 00:00:20]} 64. Bxc5 {[%clk 00:00:36]} {[%emt
00:00:35]} e2 {[%clk 00:01:24]} {[%emt 00:00:01]} 65. Bd4+ {[%clk 00:00:48]}
{[%emt 00:00:19]} Kf8 {[%clk 00:00:45]} {[%emt 00:01:08]} 66. Bc3 {[%clk
00:01:13]} {[%emt 00:00:05]} a4 {[%clk 00:01:13]} {[%emt 00:00:03]} 67. Ke4
{[%clk 00:01:18]} {[%emt 00:00:24]} a3 {[%clk 00:00:35]} {[%emt 00:01:09]} 68.
Kd3 {[%clk 00:01:39]} 1-0